lending/lending_fUSD_20240110
["ID","MTS","AMOUNT","RATE_DAILY","PERIOD"]
[311043805,1704888663333,-150.0,0.000301,2]
[311043806,1704888663343,-150.0,0.000301,2]
[311043807,1704888663352,-300.0,0.00030101,2]
[311043808,1704888663361,-336.91153015,0.00030103,2]
[311043809,1704888663371,-500.0,0.00030111,2]
[311043810,1704888663381,-200.0,0.00030126,7]
[311043811,1704888663390,-200.0,0.00030126,7]
[311043812,1704888663400,-1348.28,0.00030126,10]
[311043813,1704888663412,-300.0,0.00030135,2]
[311043814,1704888663422,-302.45179524,0.00030135,2]
[311043815,1704888663432,-1050.97,0.00030135,2]
[311043816,1704888663442,-150.0,0.00030135,2]
[311043817,1704888663452,-414.790203,0.00030136,7]
[311043818,1704888663462,-414.790203,0.00030136,7]
[311043819,1704888663471,-414.790203,0.00030136,7]
[311043820,1704888663485,-414.790203,0.00030136,7]
[311043821,1704888663495,-414.790203,0.00030136,7]
[311043822,1704888663504,-414.790199,0.00030136,7]
[311043823,1704888663514,-208.579929,0.00030136,7]
[311043824,1704888663524,-618.989956,0.00030136,7]
[311043825,1704888663533,-618.989956,0.00030136,7]
[311043826,1704888663543,-618.989956,0.00030136,7]
[311043827,1704888663553,-618.989956,0.00030136,7]
[311043828,1704888663562,-618.989956,0.00030136,7]
[311043829,1704888663571,-618.989964,0.00030136,7]
[311043830,1704888663581,-151.0,0.00030136,7]
[311043831,1704888663590,-151.0,0.00030136,7]
[311043832,1704888663600,-151.0,0.00030136,7]
[311043833,1704888663609,-171.510429,0.00030136,7]
[311043834,1704888663619,-171.510429,0.00030136,7]
[311043835,1704888663885,-171.510429,0.00030136,7]
[311043836,1704888663896,-171.510429,0.00030136,7]
[311043837,1704888663905,-171.510429,0.00030136,7]
[311043838,1704888663915,-171.510434,0.00030136,7]
[311043839,1704888663925,-151.0,0.00030136,7]
[311043840,1704888663934,-151.0,0.00030136,7]
[311043841,1704888663944,-151.0,0.00030136,7]
[311043842,1704888663953,-151.0,0.00030136,7]
[311043843,1704888663963,-205.50754,0.00030136,7]
[311043844,1704888663973,-151.0,0.00030136,7]
[311043845,1704888663984,-278.12984,0.00030136,7]
[311043846,1704888663994,-623.689374,0.00030136,7]
[311043847,1704888664004,-623.689374,0.00030136,7]
[311043848,1704888664014,-623.689374,0.00030136,7]
[311043849,1704888664023,-623.689374,0.00030136,7]
[311043850,1704888664033,-623.689374,0.00030136,7]
[311043851,1704888664042,-623.689368,0.00030136,7]
[311043852,1704888664051,-265.823604,0.00030136,7]
[311043853,1704888664061,-265.823604,0.00030136,7]
[311043854,1704888664070,-265.823604,0.00030136,7]
[311043855,1704888664080,-265.823604,0.00030136,7]
[311043856,1704888664089,-265.823604,0.00030136,7]
[311043857,1704888664099,-265.823613,0.00030136,7]
[311043858,1704888664109,-500.0,0.00030136,2]
[311043859,1704888664119,-500.0,0.00030136,2]
[311043860,1704888664129,-301.45074299,0.00030136,2]
[311043861,1704888664137,-500.0,0.00030136,2]
[311043862,1704888664148,-488.79444827,0.00030136,2]
[311043863,1704888664157,-500.0,0.00030136,2]
[311043864,1704888664167,-500.0,0.00030136,2]
[311043865,1704888664177,-500.0,0.00030136,2]
[311043866,1704888664187,-500.0,0.00030136,2]
[311043867,1704888664200,-500.0,0.00030136,2]
[311043868,1704888664214,-500.0,0.00030136,2]
[311043869,1704888664223,-500.0,0.00030136,2]
[311043870,1704888664235,-956.08,0.00030136,2]
[311043871,1704888664245,-500.0,0.00030136,2]
[311043872,1704888664254,-503.32743061,0.00030136,2]
[311043873,1704888664264,-759.64,0.00030136,2]
[311043874,1704888664274,-500.0,0.00030136,2]
[311043875,1704888664284,-504.60480944,0.00030136,2]
[311043876,1704888664294,-500.0,0.00030136,2]
[311043877,1704888664304,-1305.2,0.00030136,2]
[311043878,1704888664313,-939.75,0.00030136,2]
[311043879,1704888664322,-670.58,0.00030136,2]
[311043880,1704888664331,-500.0,0.00030136,2]
[311043881,1704888664341,-565.7393927,0.00030136,2]
[311043882,1704888664350,-500.0,0.00030136,2]
[311043883,1704888664359,-500.0,0.00030136,2]
[311043884,1704888664369,-570.85,0.00030136,2]
[311043885,1704888664379,-500.0,0.00030136,2]
[311043886,1704888664388,-500.0,0.00030136,2]
[311043887,1704888664398,-408.59068038,0.00030136,2]
[311043888,1704888664407,-500.0,0.00030136,2]
[311043889,1704888664417,-500.0,0.00030136,2]
[311043890,1704888664427,-500.0,0.00030136,2]
[311043891,1704888664436,-500.0,0.00030136,2]
[311043892,1704888664446,-629.53,0.00030136,2]
[311043893,1704888664455,-500.0,0.00030136,2]
[311043894,1704888664465,-716.29,0.00030136,2]
[311043895,1704888664475,-500.0,0.00030136,2]
[311043896,1704888664486,-1105.64,0.00030136,2]
[311043897,1704888664495,-537.66877805,0.00030136,2]
[311043898,1704888664504,-500.0,0.00030136,2]
[311043899,1704888664514,-500.0,0.00030136,2]
[311043900,1704888664523,-500.0,0.00030136,2]
[311043901,1704888664532,-500.0,0.00030136,2]
[311043902,1704888664541,-661.88,0.00030136,2]
[311043903,1704888664551,-569.25,0.00030136,2]
[311043904,1704888664560,-516.5,0.00030136,2]
[311043905,1704888664570,-500.0,0.00030136,2]
[311043906,1704888664579,-500.0,0.00030136,2]
[311043907,1704888664588,-500.0,0.00030136,2]
[311043908,1704888664598,-500.0,0.00030136,2]
[311043909,1704888664607,-675.4,0.00030136,2]
[311043910,1704888664617,-636.00530727,0.00030136,2]
[311043911,1704888664626,-500.0,0.00030136,2]
[311043912,1704888664635,-708.61,0.00030136,2]
[311043913,1704888664645,-500.0,0.00030136,2]
[311043914,1704888664654,-500.0,0.00030136,2]
[311043915,1704888664663,-179.62985832,0.00030136,2]
[311043916,1704888664673,-500.0,0.00030136,2]
[311043917,1704888664683,-500.0,0.00030136,2]
[311043918,1704888664693,-500.0,0.00030136,2]
[311043919,1704888664703,-220.04346624,0.00030136,2]
[311043920,1704888664712,-500.0,0.00030136,2]
[311043921,1704888664722,-589.1,0.00030136,2]
[311043922,1704888664733,-685.28,0.00030136,2]
[311043923,1704888664742,-559.57,0.00030136,2]
[311043924,1704888664752,-500.0,0.00030136,2]
[311043925,1704888664761,-500.0,0.00030136,2]
[311043926,1704888664770,-500.0,0.00030136,2]
[311043927,1704888664780,-500.0,0.00030136,2]
[311043928,1704888664789,-500.0,0.00030136,2]
[311043929,1704888664799,-500.0,0.00030136,2]
[311043930,1704888664808,-500.0,0.00030136,2]
[311043931,1704888664817,-547.55,0.00030136,2]
[311043932,1704888664827,-500.0,0.00030136,2]
[311043933,1704888664836,-500.0,0.00030136,2]
[311043934,1704888664846,-500.0,0.00030136,2]
[311043935,1704888664855,-500.0,0.00030136,2]
[311043936,1704888664864,-628.59,0.00030136,2]
[311043937,1704888664873,-500.0,0.00030136,2]
[311043938,1704888664882,-706.15,0.00030136,2]
[311043939,1704888664891,-500.0,0.00030136,2]
[311043940,1704888664900,-521.21,0.00030136,2]
[311043941,1704888664909,-500.0,0.00030136,2]
[311043942,1704888664918,-500.0,0.00030136,2]
[311043943,1704888664927,-500.0,0.00030136,2]
[311043944,1704888664937,-1087.53,0.00030136,2]
[311043945,1704888664946,-500.0,0.00030136,2]
[311043946,1704888664955,-500.0,0.00030136,2]
[311043947,1704888664965,-500.0,0.00030136,2]
[311043948,1704888664974,-500.0,0.00030136,2]
[311043949,1704888664984,-622.56,0.00030136,2]
[311043950,1704888664993,-500.0,0.00030136,2]
[311043951,1704888665002,-500.0,0.00030136,2]
[311043952,1704888665012,-500.0,0.00030136,2]
[311043953,1704888665021,-500.0,0.00030136,2]
[311043954,1704888665031,-500.0,0.00030136,2]
[311043955,1704888665040,-500.0,0.00030136,2]
[311043956,1704888665050,-168.9762913,0.00030136,2]
[311043957,1704888665059,-500.0,0.00030136,2]
[311043958,1704888665070,-500.0,0.00030136,2]
[311043959,1704888665079,-500.0,0.00030136,2]
[311043960,1704888665088,-500.0,0.00030136,2]
[311043961,1704888665098,-500.0,0.00030136,2]
[311043962,1704888665108,-500.0,0.00030136,2]
[311043963,1704888665117,-500.0,0.00030136,2]
[311043964,1704888665127,-500.0,0.00030136,2]
[311043965,1704888665136,-500.0,0.00030136,2]
[311043966,1704888665146,-750.9,0.00030136,2]
[311043967,1704888665156,-672.68,0.00030136,2]
[311043968,1704888665166,-500.0,0.00030136,2]
[311043969,1704888665175,-500.0,0.00030136,2]
[311043970,1704888665184,-500.0,0.00030136,2]
[311043971,1704888665194,-737.52,0.00030136,2]
[311043972,1704888665204,-546.12,0.00030136,2]
[311043973,1704888665214,-609.21,0.00030136,2]
[311043974,1704888665223,-500.0,0.00030136,2]
[311043975,1704888665236,-500.0,0.00030136,2]
[311043976,1704888665247,-500.0,0.00030136,2]
[311043977,1704888665257,-500.0,0.00030136,2]
[311043978,1704888665267,-500.0,0.00030136,2]
[311043979,1704888665277,-678.52,0.00030136,2]
[311043980,1704888665287,-603.81,0.00030136,2]
[311043981,1704888665297,-500.0,0.00030136,2]
[311043982,1704888665307,-597.73,0.00030136,2]
[311043983,1704888665316,-500.0,0.00030136,2]
[311043984,1704888665326,-709.78,0.00030136,2]
[311043985,1704888665336,-500.0,0.00030136,2]
[311043986,1704888665345,-227.41131111,0.00030136,2]
[311043987,1704888665355,-500.0,0.00030136,2]
[311043988,1704888665365,-500.0,0.00030136,2]
[311043989,1704888665375,-500.0,0.00030136,2]
[311043990,1704888665385,-500.0,0.00030136,2]
[311043991,1704888665394,-945.81,0.00030136,2]
[311043992,1704888665403,-647.02,0.00030136,2]
[311043993,1704888665413,-500.0,0.00030136,2]
[311043994,1704888665422,-500.0,0.00030136,2]
[311043995,1704888665431,-1002.21,0.00030136,2]
[311043996,1704888665440,-757.63,0.00030136,2]
[311043997,1704888665449,-500.0,0.00030136,2]
[311043998,1704888665458,-500.0,0.00030136,2]
[311043999,1704888665467,-500.0,0.00030136,2]
[311044000,1704888665477,-500.0,0.00030136,2]
[311044001,1704888665488,-500.0,0.00030136,2]
[311044002,1704888665498,-893.67,0.00030136,2]
[311044003,1704888665508,-500.0,0.00030136,2]
[311044004,1704888665517,-500.0,0.00030136,2]
[311044005,1704888665527,-500.0,0.00030136,2]
[311044006,1704888665536,-701.25,0.00030136,2]
[311044007,1704888665547,-635.43,0.00030136,2]
[311044008,1704888665560,-500.0,0.00030136,2]
[311044009,1704888665570,-500.0,0.00030136,2]
[311044010,1704888665580,-500.0,0.00030136,2]
[311044011,1704888665590,-500.0,0.00030136,2]
[311044012,1704888665601,-935.73,0.00030136,2]
[311044013,1704888665611,-1670.46,0.00030136,2]
[311044014,1704888665621,-500.0,0.00030136,2]
[311044015,1704888665631,-900.31,0.00030136,2]
[311044016,1704888665641,-500.0,0.00030136,2]
[311044017,1704888665650,-871.42,0.00030136,2]
[311044018,1704888665660,-500.0,0.00030136,2]
[311044019,1704888665670,-755.3,0.00030136,2]
[311044020,1704888665679,-500.0,0.00030136,2]
[311044021,1704888665688,-500.0,0.00030136,2]
[311044022,1704888665698,-782.08,0.00030136,2]
[311044023,1704888665707,-500.0,0.00030136,2]
[311044024,1704888665717,-654.91,0.00030136,2]
[311044025,1704888665728,-765.64,0.00030136,2]
[311044026,1704888665738,-500.0,0.00030136,2]
[311044027,1704888665747,-500.0,0.00030136,2]
[311044028,1704888665757,-576.13,0.00030136,2]
[311044029,1704888665767,-500.0,0.00030136,2]
[311044030,1704888665777,-500.0,0.00030136,2]
[311044031,1704888665786,-605.46107132,0.00030136,2]
[311044032,1704888665796,-548.16,0.00030136,2]
[311044033,1704888665806,-500.0,0.00030136,2]
[311044034,1704888665816,-996.58,0.00030136,2]
[311044035,1704888665826,-500.0,0.00030136,2]
[311044036,1704888665836,-505.27827254,0.00030136,2]
[311044037,1704888665846,-500.0,0.00030136,2]
[311044038,1704888665855,-500.0,0.00030136,2]
[311044039,1704888665870,-500.0,0.00030136,2]
[311044040,1704888665880,-500.0,0.00030136,2]
[311044041,1704888665890,-500.0,0.00030136,2]
[311044042,1704888665900,-500.0,0.00030136,2]
[311044043,1704888665910,-500.0,0.00030136,2]
[311044044,1704888665920,-500.0,0.00030136,2]
[311044045,1704888665930,-500.0,0.00030136,2]
[311044046,1704888665940,-500.0,0.00030136,2]
[311044047,1704888665950,-500.0,0.00030136,2]
[311044048,1704888665960,-500.0,0.00030136,2]
[311044049,1704888665969,-500.0,0.00030136,2]
[311044050,1704888665981,-500.0,0.00030136,2]
[311044051,1704888665990,-500.0,0.00030136,2]
[311044052,1704888666000,-511.29,0.00030136,2]
[311044053,1704888666010,-506.3,0.00030136,2]
[311044054,1704888666020,-597.12,0.00030136,2]
[311044055,1704888666030,-500.0,0.00030136,2]
[311044056,1704888666039,-500.0,0.00030136,2]
[311044057,1704888666050,-500.0,0.00030136,2]
[311044058,1704888666060,-816.39,0.00030136,2]
[311044059,1704888666071,-500.0,0.00030136,2]
[311044060,1704888666081,-500.0,0.00030136,2]
[311044061,1704888666091,-500.0,0.00030136,2]
[311044062,1704888666100,-503.26,0.00030136,2]
[311044063,1704888666110,-500.0,0.00030136,2]
[311044064,1704888666120,-500.0,0.00030136,2]
[311044065,1704888666130,-854.39,0.00030136,2]
[311044066,1704888666139,-1000.0,0.00030136,2]
[311044067,1704888666149,-555.1,0.00030136,2]
[311044068,1704888666159,-500.0,0.00030136,2]
[311044069,1704888666169,-916.55,0.00030136,2]
[311044070,1704888666179,-500.0,0.00030136,2]
[311044071,1704888666189,-500.0,0.00030136,2]
[311044072,1704888666204,-500.0,0.00030136,2]
[311044073,1704888666214,-500.0,0.00030136,2]
[311044074,1704888666225,-586.98,0.00030136,2]
[311044075,1704888666238,-500.0,0.00030136,2]
[311044076,1704888666248,-830.52,0.00030136,2]
[311044077,1704888666259,-500.0,0.00030136,2]
[311044078,1704888666269,-500.0,0.00030136,2]
[311044079,1704888666280,-500.0,0.00030136,2]
[311044080,1704888666292,-824.33,0.00030136,2]
[311044081,1704888666302,-857.45,0.00030136,2]
[311044082,1704888666313,-675.29,0.00030136,2]
[311044083,1704888666322,-500.0,0.00030136,2]
[311044084,1704888666333,-992.12,0.00030136,2]
[311044085,1704888666437,-500.0,0.00030136,2]
[311044086,1704888666447,-500.0,0.00030136,2]
[311044087,1704888666457,-500.0,0.00030136,2]
[311044088,1704888666466,-500.0,0.00030136,2]
[311044089,1704888666476,-500.0,0.00030136,2]
[311044090,1704888666489,-500.0,0.00030136,2]
[311044091,1704888666499,-500.0,0.00030136,2]
[311044092,1704888666510,-500.0,0.00030136,2]
[311044093,1704888666519,-160.56213299,0.00030136,2]
[311044094,1704888666530,-500.0,0.00030136,2]
[311044095,1704888666539,-657.61,0.00030136,2]
[311044096,1704888666550,-500.0,0.00030136,2]
[311044097,1704888666560,-500.0,0.00030136,2]
[311044098,1704888666571,-656.47,0.00030136,2]
[311044099,1704888666581,-500.0,0.00030136,2]
[311044100,1704888666591,-500.0,0.00030136,2]
[311044101,1704888666601,-500.0,0.00030136,2]
[311044102,1704888666611,-650.84,0.00030136,2]
[311044103,1704888666622,-629.37,0.00030136,2]
[311044104,1704888666632,-920.9,0.00030136,2]
[311044105,1704888666642,-500.0,0.00030136,2]
[311044106,1704888666652,-559.52,0.00030136,2]
[311044107,1704888666662,-500.0,0.00030136,2]
[311044108,1704888666671,-500.0,0.00030136,2]
[311044109,1704888666681,-730.03,0.00030136,2]
[311044110,1704888666690,-500.0,0.00030136,2]
[311044111,1704888666699,-761.45,0.00030136,2]
[311044112,1704888666708,-500.0,0.00030136,2]
[311044113,1704888666717,-500.0,0.00030136,2]
[311044114,1704888666728,-1450.48,0.00030136,2]
[311044115,1704888666738,-545.22,0.00030136,2]
[311044116,1704888666747,-501.48,0.00030136,2]
[311044117,1704888666756,-328.18400041,0.00030136,2]
[311044118,1704888666765,-661.24,0.00030136,2]
[311044119,1704888666774,-500.0,0.00030136,2]
[311044120,1704888666783,-251.76160112,0.00030136,2]
[311044121,1704888666793,-500.0,0.00030136,2]
[311044122,1704888666802,-500.0,0.00030136,2]
[311044123,1704888666811,-500.0,0.00030136,2]
[311044124,1704888666820,-876.14,0.00030136,2]
[311044125,1704888666830,-500.0,0.00030136,2]
[311044126,1704888666840,-561.14,0.00030136,2]
[311044127,1704888666850,-500.0,0.00030136,2]
[311044128,1704888666859,-500.0,0.00030136,2]
[311044129,1704888666870,-500.0,0.00030136,2]
[311044130,1704888666879,-500.0,0.00030136,2]
[311044131,1704888666889,-500.0,0.00030136,2]
[311044132,1704888666898,-500.0,0.00030136,2]
[311044133,1704888666908,-500.0,0.00030136,2]
[311044134,1704888666918,-500.0,0.00030136,2]
[311044135,1704888666927,-500.0,0.00030136,2]
[311044136,1704888666937,-500.0,0.00030136,2]
[311044137,1704888666946,-873.58,0.00030136,2]
[311044138,1704888666956,-500.0,0.00030136,2]
[311044139,1704888666966,-575.97,0.00030136,2]
[311044140,1704888666976,-503.78,0.00030136,2]
[311044141,1704888666986,-1492.54,0.00030136,2]
[311044142,1704888666996,-1139.71,0.00030136,2]
[311044143,1704888667005,-500.0,0.00030136,2]
[311044144,1704888667014,-500.0,0.00030136,2]
[311044145,1704888667023,-500.0,0.00030136,2]
[311044146,1704888667033,-500.0,0.00030136,2]
[311044147,1704888667042,-500.0,0.00030136,2]
[311044148,1704888667051,-723.87,0.00030136,2]
[311044149,1704888667087,-500.0,0.00030136,2]
[311044150,1704888667096,-809.8,0.00030136,2]
[311044151,1704888667106,-781.43,0.00030136,2]
[311044152,1704888667115,-503.71946136,0.00030136,2]
[311044153,1704888667125,-500.0,0.00030136,2]
[311044154,1704888667134,-500.0,0.00030136,2]
[311044155,1704888667143,-500.0,0.00030136,2]
[311044156,1704888667153,-500.0,0.00030136,2]
[311044157,1704888667162,-500.0,0.00030136,2]
[311044158,1704888667172,-500.0,0.00030136,2]
[311044159,1704888667181,-733.49,0.00030136,2]
[311044160,1704888667191,-500.0,0.00030136,2]
[311044161,1704888667201,-1653.16,0.00030136,2]
[311044162,1704888667211,-1761.66,0.00030136,2]
[311044163,1704888667221,-500.0,0.00030136,2]
[311044164,1704888667232,-213.77009267,0.00030136,2]
[311044165,1704888667243,-500.0,0.00030136,2]
[311044166,1704888667256,-500.0,0.00030136,2]
[311044167,1704888667266,-500.0,0.00030136,2]
[311044168,1704888667276,-500.0,0.00030136,2]
[311044169,1704888667286,-500.0,0.00030136,2]
[311044170,1704888667297,-881.37,0.00030136,2]
[311044171,1704888667307,-500.0,0.00030136,2]
[311044172,1704888667318,-500.0,0.00030136,2]
[311044173,1704888667328,-500.0,0.00030136,2]
[311044174,1704888667339,-500.0,0.00030136,2]
[311044175,1704888667350,-1249.8,0.00030136,2]
[311044176,1704888667360,-857.46,0.00030136,2]
[311044177,1704888667371,-500.0,0.00030136,2]
[311044178,1704888667381,-1298.79,0.00030136,2]
[311044179,1704888667391,-500.0,0.00030136,2]
[311044180,1704888667402,-539.57,0.00030136,2]
[311044181,1704888667412,-504.63664803,0.00030136,2]
[311044182,1704888667422,-500.0,0.00030136,2]
[311044183,1704888667431,-1055.83,0.00030136,2]
[311044184,1704888667440,-500.0,0.00030136,2]
[311044185,1704888667449,-500.0,0.00030136,2]
[311044186,1704888667459,-500.0,0.00030136,2]
[311044187,1704888667468,-500.0,0.00030136,2]
[311044188,1704888667479,-1054.2,0.00030136,2]
[311044189,1704888667489,-579.84,0.00030136,2]
[311044190,1704888667499,-500.0,0.00030136,2]
[311044191,1704888667510,-500.0,0.00030136,2]
[311044192,1704888667519,-500.0,0.00030136,2]
[311044193,1704888667529,-500.0,0.00030136,2]
[311044194,1704888667538,-1034.54,0.00030136,2]
[311044195,1704888667548,-747.68,0.00030136,2]
[311044196,1704888667558,-500.0,0.00030136,2]
[311044197,1704888667567,-500.0,0.00030136,2]
[311044198,1704888667576,-500.0,0.00030136,2]
[311044199,1704888667586,-500.0,0.00030136,2]
[311044200,1704888667595,-512.28,0.00030136,2]
[311044201,1704888667604,-503.3,0.00030136,2]
[311044202,1704888667614,-807.66,0.00030136,2]
[311044203,1704888667623,-1116.94,0.00030136,2]
[311044204,1704888667632,-1001.85,0.00030136,2]
[311044205,1704888667641,-1274.39,0.00030136,2]
[311044206,1704888667650,-500.0,0.00030136,2]
[311044207,1704888667660,-500.0,0.00030136,2]
[311044208,1704888667669,-500.0,0.00030136,2]
[311044209,1704888667678,-500.0,0.00030136,2]
[311044210,1704888667688,-500.0,0.00030136,2]
[311044211,1704888667697,-500.0,0.00030136,2]
[311044212,1704888667706,-629.82,0.00030136,2]
[311044213,1704888667715,-577.81,0.00030136,2]
[311044214,1704888667725,-186.25759092,0.00030136,2]
[311044215,1704888667736,-500.0,0.00030136,2]
[311044216,1704888667745,-500.0,0.00030136,2]
[311044217,1704888667754,-500.0,0.00030136,2]
[311044218,1704888667763,-500.0,0.00030136,2]
[311044219,1704888667772,-500.0,0.00030136,2]
[311044220,1704888667781,-500.0,0.00030136,2]
[311044221,1704888667790,-500.0,0.00030136,2]
[311044222,1704888667799,-500.0,0.00030136,2]
[311044223,1704888667809,-1105.72,0.00030136,2]
[311044224,1704888667818,-500.0,0.00030136,2]
[311044225,1704888667827,-1205.99,0.00030136,2]
[311044226,1704888667836,-596.16,0.00030136,2]
[311044227,1704888667845,-1043.04,0.00030136,2]
[311044228,1704888667855,-500.67660856,0.00030136,2]
[311044229,1704888667863,-500.0,0.00030136,2]
[311044230,1704888667873,-500.0,0.00030136,2]
[311044231,1704888667882,-626.94,0.00030136,2]
[311044232,1704888667891,-500.0,0.00030136,2]
[311044233,1704888667900,-500.0,0.00030136,2]
[311044234,1704888667909,-1871.22,0.00030136,2]
[311044235,1704888667918,-748.43,0.00030136,2]
[311044236,1704888667927,-571.76,0.00030136,2]
[311044237,1704888667936,-500.0,0.00030136,2]
[311044238,1704888667945,-500.0,0.00030136,2]
[311044239,1704888667954,-500.0,0.00030136,2]
[311044240,1704888667964,-500.0,0.00030136,2]
[311044241,1704888667973,-500.0,0.00030136,2]
[311044242,1704888667983,-500.0,0.00030136,2]
[311044243,1704888667992,-540.38,0.00030136,2]
[311044244,1704888668002,-500.0,0.00030136,2]
[311044245,1704888668011,-825.94,0.00030136,2]
[311044246,1704888668020,-1180.78,0.00030136,2]
[311044247,1704888668029,-500.0,0.00030136,2]
[311044248,1704888668038,-500.0,0.00030136,2]
[311044249,1704888668047,-826.45,0.00030136,2]
[311044250,1704888668056,-500.0,0.00030136,2]
[311044251,1704888668065,-987.92,0.00030136,2]
[311044252,1704888668074,-500.0,0.00030136,2]
[311044253,1704888668083,-501.87914285,0.00030136,2]
[311044254,1704888668092,-500.0,0.00030136,2]
[311044255,1704888668102,-948.87,0.00030136,2]
[311044256,1704888668111,-500.0,0.00030136,2]
[311044257,1704888668120,-500.0,0.00030136,2]
[311044258,1704888668129,-500.0,0.00030136,2]
[311044259,1704888668137,-500.0,0.00030136,2]
[311044260,1704888668146,-500.0,0.00030136,2]
[311044261,1704888668156,-524.6941229,0.00030136,2]
[311044262,1704888668165,-500.0,0.00030136,2]
[311044263,1704888668174,-640.34,0.00030136,2]
[311044264,1704888668183,-1217.05,0.00030136,2]
[311044265,1704888668197,-972.35,0.00030136,2]
[311044266,1704888668208,-500.0,0.00030136,2]
[311044267,1704888668217,-518.55,0.00030136,2]
[311044268,1704888668227,-500.0,0.00030136,2]
[311044269,1704888668239,-931.13,0.00030136,2]
[311044270,1704888668248,-500.0,0.00030136,2]
[311044271,1704888668258,-833.81,0.00030136,2]
[311044272,1704888668267,-721.99,0.00030136,2]
[311044273,1704888668275,-500.0,0.00030136,2]
[311044274,1704888668285,-500.0,0.00030136,2]
[311044275,1704888668296,-500.0,0.00030136,2]
[311044276,1704888668305,-500.0,0.00030136,2]
[311044277,1704888668315,-1023.86,0.00030136,2]
[311044278,1704888668324,-532.84529752,0.00030136,2]
[311044279,1704888668333,-500.0,0.00030136,2]
[311044280,1704888668342,-500.0,0.00030136,2]
[311044281,1704888668351,-500.0,0.00030136,2]
[311044282,1704888668360,-1506.1,0.00030136,2]
[311044283,1704888668369,-500.0,0.00030136,2]
[311044284,1704888668378,-500.0,0.00030136,2]
[311044285,1704888668388,-500.0,0.00030136,2]
[311044286,1704888668397,-500.0,0.00030136,2]
[311044287,1704888668406,-500.22483848,0.00030136,2]
[311044288,1704888668415,-500.0,0.00030136,2]
[311044289,1704888668424,-541.19,0.00030136,2]
[311044290,1704888668433,-866.62,0.00030136,2]
[311044291,1704888668442,-838.4,0.00030136,2]
[311044292,1704888668451,-500.0,0.00030136,2]
[311044293,1704888668461,-500.0,0.00030136,2]
[311044294,1704888668470,-785.85,0.00030136,2]
[311044295,1704888668482,-212.96935864,0.00030136,2]
[311044296,1704888668492,-500.0,0.00030136,2]
[311044297,1704888668503,-500.0,0.00030136,2]
[311044298,1704888668512,-500.0,0.00030136,2]
[311044299,1704888668521,-500.0,0.00030136,2]
[311044300,1704888668530,-1018.32,0.00030136,2]
[311044301,1704888668539,-1135.48,0.00030136,2]
[311044302,1704888668548,-500.0,0.00030136,2]
[311044303,1704888668557,-1038.0,0.00030136,2]
[311044304,1704888668565,-500.0,0.00030136,2]